Cogmind - Beta 16.1 @@@ ROGUE MODE // 2026.02.12 @ 02:41:25 Player: deepledi Result: Destroyed by H-55 Commando with Assault Rifle Performance ------------- Evolutions (2) 1000 Regions Visited (5) 1000 Robots Destroyed (108) 540 Value Destroyed (4809) 4809 Prototype IDs (9) 180 Alien Tech Used (0) 0 Bonus (1486) 1486 TOTAL SCORE: 9015 Bonus ------- High Alert Combat Kills 531 Follower Combat Kills 255 Entered Garrisons 200 Used RIF Installer 500 Cogmind --------- Core Integrity 0/550 Matter 256/300 Energy 50/240 System Corruption 3% Temperature Cool (12) Movement Treading (200) Ox1 Location -8/Materials Parts ------- > --- POWER (1) -------- Nuclear Core > --- PROPULSION (3) --- Light Treads Light Treads > --- UTILITY (4) ------ Improved Heat Sink High-capacity Storage Unit > --- WEAPON (3) ------- Heavy Particle Gun Heavy Particle Gun Heavy Assault Rifle > --- INVENTORY (20) --- Reinforced Ion Engine Heavy Ion Engine Medium Storage Unit Insulated Plating Hardlight Generator Hacking Suite Authchip [R/Combat] Relay Coupler [Swarmer] (31) Relay Coupler [Grunt] (28) Relay Coupler [Demolisher] (23) Relay Coupler [Specialist] (22) Advanced Beam Cannon Assault Cannon Flak Cannon Peak State ------------ > --- POWER ------------ Cooled Ion Engine > --- PROPULSION ------- Light Treads Light Treads Armored Treads > --- UTILITY ---------- High-capacity Storage Unit Improved Targeting Computer Hardened Medium Armor Plating Insulated Plating > --- WEAPON ----------- Heavy Laser Minigun Gauss Rifle > --- INVENTORY -------- Heavy Ion Engine Nuclear Core Light Treads Medium Storage Unit Reaction Control System Hardened Medium Armor Plating Insulated Plating Insulated Plating Hardlight Generator Hacking Suite Authchip [R/Combat] Relay Coupler [Swarmer] Relay Coupler [Grunt] Relay Coupler [Sentry] Relay Coupler [Demolisher] Advanced Beam Cannon Assault Cannon Flak Cannon Flak Cannon Remote Datajack [Rating: 34] Favorites ----------- Power Cooled Ion Engine Engine Cooled Ion Engine Power Core Nuclear Core Propulsion Light Treads Treads Light Treads Leg Aluminum Leg Wheel Wheel Utility High-capacity Storage Unit Device Hardlight Generator Storage High-capacity Storage Unit Processor Improved Targeting Computer Hackware Relay Coupler [Grunt] Protection Hardened Medium Armor Plating Weapon Flak Cannon Energy Gun Heavy Laser Energy Cannon Advanced Beam Cannon Ballistic Gun Minigun Ballistic Cannon Flak Cannon Special Weapon Remote Datajack Special Melee Weapon Datajack Build | -11 -10 -9 -8 -8 -8 ------- Run | Yrd Mat Mat Mat Gar Mat Slots Evolved 4 | . . 2 2 . . Power . | . . . . . . Propulsion 1 | . . 1 . . . Utility 2 | . . 1 1 . . Weapon 1 | . . . 1 . . Parts Attached 69 | 6 9 21 7 19 7 Power 5 | 1 . 3 . . 1 Engine 4 | 1 . 3 . . . Core 1 | . . . . . 1 Reactor . | . . . . . . Propulsion 25 | 2 3 8 2 8 2 Treads 19 | . 2 5 2 8 2 Leg 2 | 2 . . . . . Wheel 4 | . 1 3 . . . Hover . | . . . . . . Flight . | . . . . . . Utility 16 | 1 2 5 2 4 2 Device 3 | . . 1 . 2 . Storage 2 | 1 1 . . . . Processor 1 | . . 1 . . . Hackware 1 | . . . . . 1 Protection 9 | . 1 3 2 2 1 Artifact . | . . . . . . Weapon 23 | 2 4 5 3 7 2 Energy Gun 7 | 2 1 1 . 1 2 Energy Cannon 2 | . 1 1 . . . Ballistic Gun 8 | . 2 3 1 2 . Ballistic Cannon 4 | . . . 2 2 . Launcher . | . . . . . . Special Weapon 1 | . . . . 1 . Impact Weapon . | . . . . . . Slashing Weapon . | . . . . . . Piercing Weapon . | . . . . . . Special Melee Weapon 1 | . . . . 1 . Unidentified Prototypes 6 | . . 5 . . 1 Parts Lost 20 | . . 2 1 9 8 Power 1 | . . . . . 1 Propulsion 8 | . . 1 1 3 3 Utility 8 | . . 1 . 4 3 Weapon 3 | . . . . 2 1 Highest Loss Streak 7 | . . 1 1 7 7 To Critical Strikes . | . . . . . . Average Backups 18 | 2 9 19 19 19 19 Power 1 | . 1 1 1 2 2 Propulsion 1 | 1 4 1 . 1 1 Utility 9 | . 2 9 10 11 10 Weapon 4 | . 1 6 6 3 3 Tool/Special . | . . . . . . Unused Backups 28 | . . 10 1 8 9 Power 1 | . . . . . 1 Propulsion 1 | . . 1 . . . Utility 21 | . . 5 1 7 8 Weapon 5 | . . 4 . 1 . Tool/Special . | . . . . . . Average Slot Usage (%) 98 | . 99 98 98 99 93 Engine 10 | . 14 10 9 9 8 Treads 22 | . 8 22 25 26 25 Leg 1 | . 10 . . . . Wheel 3 | . 8 10 . . . Device 4 | . . . 8 7 9 Storage 10 | . 14 11 9 9 9 Processor 5 | . . 10 9 3 . Protection 12 | . 13 10 9 14 12 Energy Gun 5 | . 15 2 . 5 12 Energy Cannon 4 | . 9 1 . 4 6 Ballistic Gun 10 | . 2 17 9 10 . Ballistic Cannon 4 | . . . 16 5 . Peak Build Rating 34 | 6 9 23 31 34 33 Average Rating 24 | 4 7 20 29 30 30 On Entrance 16 | . 6 9 23 31 30 Avg Prop Armor Cover (%) 12 | . 9 14 11 . . Naked Turns . | . . . . . . Heaviest Build 76 | 13 53 63 76 76 71 Greatest Support 60 | 20 20 40 60 60 60 Greatest Overweight (x) 6 | . 5 6 4 3 2 Average Overweight (x) 2 | . 3 5 1 1 . Largest Inventory Capacity 20 | 8 20 20 20 20 20 Average Capacity 19 | 7 15 20 20 20 20 Most Carried 20 | 6 16 20 20 20 20 Average Carried 18 | 3 9 19 19 19 19 Final Capacity 20 | 8 20 20 20 20 20 Final Carried 20 | 6 16 20 20 20 14 Class Distribution -------------------- 39% | Mutant 30% | Tank 22% | Scavenger-Tank 7% | Bothacker-Tank Dominant Class ---------------- Mutant | -10/Materials Mutant | -9/Materials Tank | -8/Materials Scavenger-Tank | -8/Garrison Bothacker-Tank | -8/Materials Resources | -11 -10 -9 -8 -8 -8 ----------- Run | Yrd Mat Mat Mat Gar Mat Matter Collected 2879 | 151 200 798 421 1230 79 Remotely . | . . . . . . Salvage Created 3881 | . 381 1509 568 1074 349 Parts 225 | . 29 91 23 64 18 Haulers Intercepted 8 | . 1 6 . . 1 Recyclers Shooed 2 | . . 2 . . . Parts Field Recycled . | . . . . . . Retrieved Matter . | . . . . . . Parts Self-Destructed . | . . . . . . Prevented . | . . . . . . Parts Restored . | . . . . . . Kills | -11 -10 -9 -8 -8 -8 ------- Run | Yrd Mat Mat Mat Gar Mat Combat Hostiles Destroyed 78 | . 7 22 14 29 6 Guns 45 | . 4 19 4 13 5 Cannons 31 | . 3 2 10 16 . Classes Destroyed 14 | . 6 4 1 2 1 Worker 3 | . . 2 1 . . Builder 1 | . 1 . . . . Tunneler 1 | . . . . . 1 Hauler 8 | . 1 6 . . 1 Recycler 3 | . . 2 1 . . Operator 2 | . 1 1 . . . Watcher 7 | . 1 5 . . 1 Swarmer 12 | . 2 3 2 3 2 Cutter 1 | . . . . 1 . Grunt 35 | . 5 9 8 10 3 Brawler 7 | . . 3 1 3 . Sentry 20 | . . 7 2 11 . Hunter 6 | . . . 1 4 1 Programmer 2 | . . . . 2 . Best Kill Streak 7 | . 6 7 3 5 5 Combat Bots Only 7 | . 3 7 3 5 2 Max Kills in Single Turn 4 | . 1 2 2 4 2 Gunslinging 1 | . . . . . 1 Exploded . | . . . . . . Melee . | . . . . . . Uniques/NPCs Destroyed . | . . . . . . Combat | -11 -10 -9 -8 -8 -8 -------- Run | Yrd Mat Mat Mat Gar Mat Hostile Shots Fired 518 | . 43 91 59 221 104 Missed 133 | . 11 26 14 49 33 Hits 385 | . 32 65 45 172 71 Melee 2 | . . . . 2 . Projectile 383 | . 32 65 45 170 71 AOE 2 | . . . . 2 . Critical Strikes 16 | . . 5 1 9 1 Damage Taken 5274 | . 406 770 573 2501 1024 Core 702 | . 64 81 48 372 137 Absorbed by Shields 295 | . . . 92 203 . Ignored by Resistances 33 | . . . . 33 . Regen/Repaired (Parts) 369 | . . 204 165 . . Core Remaining (%) 84 | 100 74 79 . . . Volleys Fired 292 | . 42 83 28 106 33 Largest 3 | . 2 2 3 3 3 Hottest 178 | . 100 91 106 160 178 Shots Fired 633 | . 85 165 77 240 66 Gun 424 | . 51 154 43 130 46 Cannon 188 | . 34 11 34 94 15 Launcher . | . . . . . . Special 21 | . . . . 16 5 Kinetic 366 | . 6 133 66 158 3 Thermal 209 | . 42 32 11 66 58 Explosive . | . . . . . . Electromagnetic 37 | . 37 . . . . Robot Hit Streak 19 | . 7 17 13 19 8 Robot Miss Streak 9 | . 8 2 6 9 3 Penetration Max 1 | . . . . 1 . Secondary Targets 6 | . . 1 . 3 2 Max Gunslinging Chain 2 | . . 1 . 1 2 Shots Hit Robots 407 | . 40 121 58 147 41 Core Hits 233 | . 14 50 56 101 12 Critical Kills 1 | . . 1 . . . Critical Parts Destroyed 2 | . . . . 2 . Critical Strikes 6 | . . 1 . 2 3 Burn 3 | . . . . . 3 Meltdown 1 | . . 1 . . . Destroy 2 | . . . . 2 . Melee Attacks . | . . . . . . Impact . | . . . . . . Slashing . | . . . . . . Piercing . | . . . . . . Sneak Attacks . | . . . . . . Combat Hostiles . | . . . . . . Follow-up Attacks . | . . . . . . Damage Inflicted 7716 | . 650 2037 1122 3135 772 Guns 4935 | . 398 1912 595 1444 586 Cannons 2294 | . 245 125 527 1211 186 Explosions 466 | . . . . 466 . Melee . | . . . . . . Ramming 21 | . 7 . . 14 . Kinetic 4604 | . 24 1635 973 1933 39 Thermal 2326 | . 320 402 149 722 733 Explosive 466 | . . . . 466 . Electromagnetic 299 | . 299 . . . . Impact . | . . . . . . Slashing . | . . . . . . Piercing . | . . . . . . Highest Corruption 3 | . 3 . . 3 3 Average Corruption 2 | . 2 . . 2 3 Corruption Purged . | . . . . . . Corruption Blocked . | . . . . . . Effects 64 | . 12 . . 48 4 Message Errors 19 | . 3 . . 14 2 Matter Fused 12 | . 2 . . 10 . Heat Flow Errors 9 | . 3 . . 6 . Energy Discharges 7 | . 2 . . 5 . Data Loss (minor) 6 | . . . . 6 . Data Loss (major) 3 | . 1 . . 2 . Misfires 6 | . 1 . . 4 1 Weapon Failures 2 | . . . . 1 1 Overload Shots . | . . . . . . Overflow Damage 10 | . 10 . . . . Projectiles 10 | . 10 . . . . Explosions . | . . . . . . Melee . | . . . . . . Knockbacks 44 | . . . 16 28 . Impact . | . . . . . . Kinetic 42 | . . . 14 28 . Secondary 2 | . . . 2 . . Self-Inflicted Damage 162 | . 55 . . 107 . Shots 3 | . 2 . . 1 . Rammed 5 | . . . . 5 . Targets Rammed 6 | . 1 . . 5 . Kicked 1 | . 1 . . . . Crushed . | . . . . . . Highest Temperature 529 | . 305 171 367 529 180 Average Temperature 103 | . 103 44 124 135 66 Received Heat Transfer 1698 | . 159 306 303 831 99 Effects 16 | . 2 . 5 9 . Shutdowns 2 | . . . 1 1 . Energy Bleed 5 | . 1 . 1 3 . Interference 3 | . 1 . . 2 . Matter Decay 2 | . . . 1 1 . Short Circuit 1 | . . . 1 . . Damage (minor) 2 | . . . 1 1 . Damage (core) 1 | . . . . 1 . Siege Activations . | . . . . . . Martial Activations . | . . . . . . Shielding Activations . | . . . . . . Robots Disrupted . | . . . . . . Combat Hostiles . | . . . . . . Robots Corrupted . | . . . . . . Combat Hostiles . | . . . . . . Parts Fried 2 | . 2 . . . . Impact Corruptions . | . . . . . . Robots Melted 2 | . . 1 . . 1 Combat Hostiles 2 | . . 1 . . 1 Parts Melted 11 | . 1 . 2 3 5 Heat Transferred 4872 | . 691 888 333 1369 1591 Parts Sabotaged . | . . . . . . Parts Stolen . | . . . . . . Parts Stripped . | . . . . . . Power Chain Reactions 2 | . 2 . . . . Alert | -11 -10 -9 -8 -8 -8 ------- Run | Yrd Mat Mat Mat Gar Mat Maximum Alert Level 5 | . . 1 . 5 4 Low Security (%) 56 | 100 100 87 100 15 . Level 1 5 | . . 12 . 5 . Level 2 6 | . . . . 14 . Level 3 9 | . . . . 18 45 Level 4 10 | . . . . 18 54 Level 5 11 | . . . . 27 . High Security . | . . . . . . Max Security . | . . . . . . Peak Influence 2351 | . 104 233 157 2351 1145 Initial 1145 | . . 22 61 98 1145 Average 542 | . 22 160 39 1056 1070 Influence Increases 4016 | . 252 728 364 2383 289 Destroy 0b10 Robot/C 1740 | . 140 440 280 700 180 Destroy 0b10 Robot/NC 125 | . 20 80 10 . 15 Destroy Leader 310 | . 34 132 70 30 44 Allied During Kill 27 | . . . . 13 14 Successful Hack 89 | . 18 28 3 34 6 Disable Machine 15 | . 15 . . . . Anti-Garrison Action 1500 | . . . . 1500 . Destroy Structure 120 | . 10 3 1 106 . Lose Combat Pursuer 90 | . 15 45 . . 30 Influence Decreases 3072 | . 198 635 360 183 1696 Entered New Map 1377 | . . 32 86 53 1206 Time Decay 1225 | . 198 583 264 . 180 Lost Part 200 | . . 20 10 90 80 Lost Ally 120 | . . . . 40 80 Purge Threat 150 | . . . . . 150 Squads Dispatched 9 | . 2 1 4 . 2 Investigation 3 | . . 1 1 . 1 Extermination . | . . . . . . Reinforcement 3 | . 2 . . . 1 Assault . | . . . . . . Garrison 3 | . . . 3 . . Intercept . | . . . . . . Searches Triggered . | . . . . . . Construction Impeded . | . . . . . . Haulers Reinforced . | . . . . . . Active Scanning Responses . | . . . . . . Cargo Convoy Interrupts . | . . . . . . Stealth | -11 -10 -9 -8 -8 -8 --------- Run | Yrd Mat Mat Mat Gar Mat Distress Signals 8 | . . 3 1 . 4 Communications Jammed . | . . . . . . Distress Signals . | . . . . . . Times Spotted 120 | . 13 33 16 35 23 Peak Tracking Total 9 | . 3 6 4 7 9 Tactical Retreats 4 | . 1 1 . . 2 Traps | -11 -10 -9 -8 -8 -8 ------- Run | Yrd Mat Mat Mat Gar Mat Traps Triggered 12 | . 2 . . 10 . Indirectly . | . . . . . . Trap Hack Attempts 5 | . . . . 5 . Triggered . | . . . . . . Disarmed 1 | . . . . 1 . Reprogrammed . | . . . . . . Reused . | . . . . . . Traps Extracted . | . . . . . . Installed . | . . . . . . Triggered . | . . . . . . Machines | -11 -10 -9 -8 -8 -8 ---------- Run | Yrd Mat Mat Mat Gar Mat Machines Disabled 11 | . 1 . . 10 . Max in Single Turn 2 | . 1 . . 2 . Garrison Relay 6 | . . . . 6 . Phase Generator 1 | . . . . 1 . Machines Repaired . | . . . . . . Machines Dismantled . | . . . . . . Machines Sabotaged . | . . . . . . Overloaded Fab Kills . | . . . . . . Hacking | -11 -10 -9 -8 -8 -8 --------- Run | Yrd Mat Mat Mat Gar Mat Machines Accessed 21 | . 5 8 3 4 1 Terminals 15 | . 5 5 . 4 1 Fabricators . | . . . . . . Repair Stations 2 | . . 1 1 . . Recycling Units . | . . . . . . Scanalyzers 3 | . . 2 1 . . Garrison Access 1 | . . . 1 . . Total Hacks 63 | . 6 37 7 8 5 Successful 48 | . 6 27 7 4 4 Failed 15 | . . 10 . 4 1 Catastrophic . | . . . . . . Database Lockouts . | . . . . . . Manual 22 | . 4 12 . 2 4 Terminals 36 | . 6 17 . 8 5 Fabricators . | . . . . . . Repair Stations 10 | . . 8 2 . . Recycling Units . | . . . . . . Scanalyzers 16 | . . 12 4 . . Garrison Access 1 | . . . 1 . . Terminal Hacks 11 | . 2 4 . 3 2 Prototype ID Bank 2 | . . 2 . . . Open Door 1 | . . . . 1 . Branch Access Points 1 | . 1 . . . . Alert Level 2 | . 1 . . . 1 Unreport Threat 1 | . . . . . 1 Locate Traps 2 | . . 2 . . . Patrol Navigation 1 | . . . . 1 . Security Stations 1 | . . . . 1 . Fabricator Hacks . | . . . . . . Repair Station Hacks 8 | . . 6 2 . . Scan Component 4 | . . 3 1 . . Repair 4 | . . 3 1 . . Recycling Unit Hacks . | . . . . . . Scanalyzer 15 | . . 11 4 . . Insert Component 5 | . . 4 1 . . Analyze 7 | . . 5 2 . . Retrieve Study 3 | . . 2 1 . . Garrison Access Hacks 1 | . . . 1 . . Unlock Access 1 | . . . 1 . . Unauthorized Hacks 13 | . 4 6 . 1 2 Terminals 13 | . 4 6 . 1 2 Assimilate 2 | . . 1 . . 1 Botnet 11 | . 4 5 . 1 1 Fabricators . | . . . . . . Repair Stations . | . . . . . . Recycling Units . | . . . . . . Scanalyzers . | . . . . . . Garrison Access . | . . . . . . Data Cores Recovered 1 | . . 1 . . . Used . | . . . . . . Hacking Detections 14 | . 2 6 2 3 1 Full Trace Events 3 | . . 1 1 . 1 Feedback Events . | . . . . . . Feedback Blocked . | . . . . . . Robot Schematics Acquired . | . . . . . . Robots Built . | . . . . . . Authchips . | . . . . . . Time . | . . . . . . Total Robot Build Rating . | . . . . . . Part Schematics Acquired 5 | . . 4 1 . . Parts Built . | . . . . . . Authchips . | . . . . . . Time . | . . . . . . Total Part Build Rating . | . . . . . . Part Studies Acquired 2 | . . 1 1 . . Parts Repaired 4 | . . 3 1 . . Time 165 | . . 127 38 . . Parts Recycled . | . . . . . . Recycled Matter . | . . . . . . Retrieved Matter . | . . . . . . Retrieved Components . | . . . . . . Parts Scanalyzed 5 | . . 4 1 . . Part Schematics Acquired 5 | . . 4 1 . . Parts Damaged . | . . . . . . Bothacking | -11 -10 -9 -8 -8 -8 ------------ Run | Yrd Mat Mat Mat Gar Mat Used RIF Installer 1 | . . . . 1 . Robots Hacked 2 | . . . . . 2 Non-combat . | . . . . . . Combat 2 | . . . . . 2 Robot Hacks Applied 4 | . . . . . 4 disable_weapons 1 | . . . . . 1 reboot_system 1 | . . . . . 1 overwrite_iff 1 | . . . . . 1 streamctrl_high 1 | . . . . . 1 Relay Couplers Released 27 | . . . . 27 . Machine Destruction 27 | . . . . 27 . Attached 1 | . . . . . 1 Fabnet Peak Effective % . | . . . . . . Robots Rewired 10 | . . . . 10 . Allies Hacked . | . . . . . . Hacks Repelled . | . . . . . . Allies | -11 -10 -9 -8 -8 -8 -------- Run | Yrd Mat Mat Mat Gar Mat Total Allies 12 | . . . . 10 2 Largest Group 7 | . . . . 7 3 Highest-Rated Group 113 | . . . . 113 87 Highest-Rated Ally 31 | . . . . 31 31 Total Orders . | . . . . . . Ally Attacks 43 | . . . . 11 32 Total Damage 792 | . . . . 279 513 Kills 9 | . . . . 6 3 Allies Corrupted . | . . . . . . Allies Melted 1 | . . . . 1 . Intel | -11 -10 -9 -8 -8 -8 ------- Run | Yrd Mat Mat Mat Gar Mat Active Infowar (turns) . | . . . . . . Robot Analysis Total . | . . . . . . Derelict Logs Recovered . | . . . . . . Drone Launches . | . . . . . . Drone Recoveries . | . . . . . . Exploration | -11 -10 -9 -8 -8 -8 ------------- Run | Yrd Mat Mat Mat Gar Mat Turns Passed 7884 | 61 1023 1935 1182 3317 366 Spaces Moved 3136 | 43 475 846 317 1333 122 Core 10 | 10 . . . . . Treads 1814 | . . 63 296 1333 122 Legs 174 | 33 141 . . . . Wheels 1138 | . 334 783 21 . . Hover . | . . . . . . Flight . | . . . . . . Fastest Speed 50 | 50 120 140 160 200 160 Average Speed 185 | 103 144 169 210 206 198 Slowest Speed 280 | 120 260 280 216 280 240 Overloaded Moves . | . . . . . . Propulsion Burnouts . | . . . . . . Robots Hopped . | . . . . . . Potential Cave-ins . | . . . . . . Cave-ins Triggered . | . . . . . . Exploration Rate (%) 46 | 4 62 79 24 94 14 Regions Visited 5 Branch Regions . Pre-discovered Areas . | . . . . . . Known Exits Taken 1 | . . . 1 . . Unknown Exits Taken 3 | 1 1 1 . . . Scrap Searched . | . . . . . . Spaces Dug . | . . . . . . Terrain Destroyed 126 | . 9 . . 117 . Melee . | . . . . . . Projectile . | . . . . . . AOE 126 | . 9 . . 117 . Terrain Rammed . | . . . . . . Walls Destroyed . | . . . . . . Machines Disabled . | . . . . . . Actions | -11 -10 -9 -8 -8 -8 --------- Run | Yrd Mat Mat Mat Gar Mat Total 4658 | 58 724 1205 776 1709 186 Wait 960 | . 187 183 411 166 13 Move 3130 | 42 474 845 316 1331 122 Hop . | . . . . . . Pick Up 74 | 10 9 29 6 18 2 Fast Attach 22 | 2 2 11 1 5 1 Attach 24 | 4 . 3 5 6 6 Detach 2 | . . 1 1 . . Swap 53 | . 7 16 4 22 4 Drop 61 | . 2 34 4 18 3 Fire 292 | . 42 83 28 106 33 Melee . | . . . . . . Ram . | . . . . . . Kick 1 | . 1 . . . . Crush 5 | . . . . 5 . Escape Stasis 16 | . . . . 16 . Rewire 13 | . . . . 11 2 Trap 5 | . . . . 5 . Miscellaneous . | . . . . . . Route ------- -11/Scrapyard -10/Materials (discovered 3 exits: *Mat / *Min x2) -9/Materials (discovered 2 exits: *Mat / [*Min]) -8/Materials -8/Garrison (discovered 3 exits: *Mat x3) -8/Materials History --------- Turn | Location | Event 6 | -11/Scrapyard | Discovered new exit (range 15) 62 | -11/Scrapyard | Entered Materials 164 | -10/Materials | Discovered new exit (range 6) 304 | -10/Materials | Build established: Mutant 1036 | -10/Materials | Discovered new exit (range 9) 1053 | -10/Materials | Identified exit to Mines 1085 | -10/Materials | Entered another Materials area 1085 | -9/Materials | Evolved 2 slots: Propulsion x1, Utility x1 1243 | -9/Materials | Destroyed 7 combat bots 2117 | -9/Materials | Discovered new exit (range 8) 2356 | -9/Materials | Repaired Hrd. Medium Armor Plating 2396 | -9/Materials | Repaired Minigun 2448 | -9/Materials | Repaired Hvy. Ion Engine 2643 | -9/Materials | Discovered new exit (range 5) 3020 | -9/Materials | Entered another Materials area 3020 | -8/Materials | Evolved 2 slots: Utility x1, Weapon x1 3265 | -8/Materials | Repaired Hrd. Medium Armor Plating 3419 | -8/Materials | Build established: Tank 3921 | -8/Materials | Garrison activated, responded to threat 3976 | -8/Materials | Identified exit to Garrison 4027 | -8/Materials | Garrison activated, responded to threat 4202 | -8/Materials | Entered Garrison 4430 | -8/Garrison | Triggered checkpoint 4497 | -8/Garrison | Garrison Relay disabled 4696 | -8/Garrison | Triggered checkpoint 4762 | -8/Garrison | Triggered checkpoint 4935 | -8/Garrison | Garrison Relay disabled 5010 | -8/Garrison | Garrison Relay disabled 5105 | -8/Garrison | Discovered new exit (range 11) 5190 | -8/Garrison | Triggered checkpoint 5511 | -8/Garrison | Discovered new exit (range 12) 5564 | -8/Garrison | Triggered checkpoint 5671 | -8/Garrison | Core integrity fell below 50% 5720 | -8/Garrison | Lost 7 parts (2n3u2w) 5810 | -8/Garrison | Triggered checkpoint 5915 | -8/Garrison | Garrison Relay disabled 5987 | -8/Garrison | Phase Generator disabled 6013 | -8/Garrison | Murdered 4 allies 6238 | -8/Garrison | Triggered checkpoint 6256 | -8/Garrison | Garrison Relay disabled 6286 | -8/Garrison | Build established: Scavenger-Tank 6292 | -8/Garrison | Learned Materials security intel 6351 | -8/Garrison | Triggered checkpoint 6378 | -8/Garrison | Discovered new exit (range 11) 6742 | -8/Garrison | Triggered checkpoint 7228 | -8/Garrison | Installed Relay Interface Framework 7519 | -8/Garrison | Entered Materials 7519 | -8/Materials | Accompanied by 3 allies 7578 | -8/Materials | Build established: Bothacker-Tank 7839 | -8/Materials | Core integrity fell below 20% 7885 | -8/Materials | Destroyed by H-55 Commando with Assault Rifle Last Messages --------------- 07867_ U-05 Engineer builds a Wall. 07869_ R-06 Scavenger collects Wheel. 07871_ M-13 Machinist repairs W-25 Informer. 07872_ S-10 Pest suffers critical hit (Burn). 07872_ R-06 Scavenger collects Terrain Scan Processor. 07872_ Insulated Plating destroyed. 07874_ Soldier 3a destroyed. 07876_ S-10 Pest suffers critical hit (Burn). 07876_ Flight Unit melted. 07876_ S-10 Pest destroyed. 07876_ Switching to secondary target: S-10 Pest. 07876_ S-10 Pest destroyed. 07876_ Switching to secondary target: S-10 Pest. 07880_ M-13 Machinist repairs R-06 Scavenger. 07881_ Penetrated by Slug. 07881_ Lgt. Treads+ destroyed. 07882_ WVMV=ITJHG :QDGN3X52GYB P 07883_ K-01 Serf collects debris. 07885_ Slug penetrates Wall. Map ----- +----------------------------------------------------+ | ?????????????????????????????????????????????????? | | ?????????????????????????????????????????????????? | | ?????????????????????????????????????????????????? | | ?????????????????????????????????????????????????? | | ?????????????????????????????????????????????????? | | ?????????????????????????????????????????????????? | | ?????????????????????????????????????????????????? | | ?????????????????????????????????????????????????? | | ?????????????????????????????????????????????????? | | ?????????????????????????????????????????????????? | | ??????????????????????? ???????????????????????? | | ??????????????????????#w ???????????????????????? | | ??????????????????????# |!???????????????????????? | | ?????????????????????? !%???????????????????????? | | ?????????????????????? *=#??????????????????????? | | ?????????????????????? #??????????????????????? | | ??????????????????????# #??????????????????????? | | ??????????????????????# #??????????????????????? | | ??????????????????????# #??????????????????????? | | ??????????????????????+ +??????????????????????? | | ??????????????????????# #??????????????????????? | | ??????????????????????# u #??????????????????????? | | ??????????????????????#*sh#??????????????????????? | | ??????????????????????# m%#??????????????????????? | | ??????????????????????# #??????????????????????? | | ?????????????????????## %@##?????######??????????? | | ???????????????######## ;###### #####??????? | | ????????#+#????# !===% =%H[% T" ?????? | | ????????# #????# ===%%*[k% ???? | | ????????# #????# %==% %%!% ???? | | ????????# #????# =###+### #####??????? | | ????????# #????# r ![## #? #??????????? | | ????????# #????# [ ##" #?? #????????? | | ? ""??# ###### ##"T #????!!!#????????? | | "" # k = =##"" #?????!!#????????? | | + w !% !+ #??????##????????? | | """ # ####[%[## #????????????????? | | ""??????### ########??##%### #????????????????? | | ??????????# #??????????#[#?# #????????????????? | | ??????????# #??????????#!#?# #????????????????? | | ????#+#?###+#######????# #?######????????????????? | | ????# #?# #????# #???????????????????????? | | ????# #?# #????#/#???????????????????????? | | ##### ### ! #??????????????????????????????? | | # #??????????????????????????????? | | / #??????????????????????????????? | | # #??????????????????????????????? | | ######## #??????????????????????????????? | | #??????# #??????????????????????????????? | | #??????###########??????????????????????????????? | +----------------------------------------------------+ Best States ------------- Heat Dissipation 45 Energy Generation 14 Energy Capacity 280 Matter Stores 300 Matter Capacity 300 Sight Range 16 Terrain Scan Density 10 Armor Coverage 375 Resistance: EM 15 Evasion (%) 55 Targeting Accuracy 6 Recoil Reduction 3 Relay Coupler Types 1 Relay Coupler Value 18 Authchip Count 1 Item Schematics ----------------- Cld. Ion Engine | -9/Materials | Scanalyzed Hrd. Medium Armor Plating | -9/Materials | Scanalyzed Flak Cannon | -9/Materials | Scanalyzed Adv. Beam Cannon | -9/Materials | Scanalyzed Insulated Plating | -8/Materials | Scanalyzed Robot Schematics ------------------ None Fabricated ------------ Nothing Repaired ---------- Hrd. Medium Armor Plating | 50% | -9/Materials Minigun | 60% | -9/Materials Hvy. Ion Engine | 69% | -9/Materials Hrd. Medium Armor Plating | 31% | -8/Materials Studied --------- Lgt. Treads | -9/Materials | Hacked Flak Cannon | -8/Materials | Hacked Alien Tech Used ----------------- None Achievements -------------- Bumper Bots For Emergencies Only Join The Dark Side Mindtrick Well Done Challenges ------------ None Game ------ Seed CryofiberCloakingUnit Manual? 0 Play Time 01:16:47 Cumulative 77.2 hours Start 2026.02.12 @ 01:24:44 End 2026.02.12 @ 02:41:25 Sessions 1 Manual Loads 0 Difficulty Rogue Special Mode None Game No. 93 Rogue 92 Adventurer 1 Explorer 0 Win Type - Total 0 Types 0/0/0/0/0/0/0/0/0/0 Lore% 22 Gallery% 40 Achievement% 26 Wizard Run 0 Options --------- Layout 1 ASCII 0 Keyboard 0 Movement Numpad Keybinds 0 Fullscreen 2 Font 24/Smallcaps Map View 50x35 Zoom Use 0% Tactical HUD 1 Map Filters NONE Filters NONE Steam 1 RUN: ce55fc31-e2e6-45f1-a784-c28adb3e53e2